[Event "BL 2024-25"]
[Site "Austria"]
[Date "2024.10.09"]
[Round "1.1"]
[White "Deuer, Marius"]
[Black "Demchenko, Anton"]
[Result "0-1"]
[ECO "E69"]
[WhiteElo "2477"]
[BlackElo "2602"]
[Annotator "TA"]
[PlyCount "70"]
[EventDate "2024.08.28"]
[EventType "team-tourn"]
[EventCountry "AUT"]
[SourceTitle "playchess.com"]
[Source "ChessBase"]
[SourceQuality "1"]
[WhiteTeam "Salzburg"]
[BlackTeam "Frauental"]
[TimeControl "40/5400+30:1800+30"]

{[%evp 30,70,47,39,52,38,42,30,22,18,31,14,26,-24,-28,-49,-19,-36,-47,-82,-68,-83,-85,-85,-7,-1,-8,-10,-7,-8,-11,-54,-12,-85,-96,-89,-2,-156,-132,-139,-152,-775,-767]} 1. d4 {[%emt 0:00:06]} Nf6 {[%emt 0:00:06]} 2. c4 {[%emt 0:00:04]} g6 {[%emt 0:00:23]} 3. g3 {[%emt 0:00:06]} Bg7 {[%emt 0:00:19]} 4. Bg2 {[%emt 0:00:06]} O-O {[%emt 0:00:04]} 5. Nc3 {[%emt 0:00:04]} d6 {[%emt 0:00:18]} 6. Nf3 {[%emt 0:00:07]} Nbd7 {[%emt 0:00:47]} 7. O-O {[%emt 0:00:14]} e5 {[%emt 0:00:03]} 8. h3 {[%emt 0:00:06]} Re8 {[%emt 0:00:52]} 9. e4 {[%emt 0:00:14]} exd4 {[%emt 0:01:01]} 10. Nxd4 {[%emt 0:00:07]} Nc5 {[%emt 0:00:02]} 11. Re1 {[%emt 0:00:31]} a5 {[%emt 0:01:00]} 12. Qc2 {[%emt 0:07:48]} a4 {[%emt 0:00:59]} 13. Be3 {[%emt 0:00:13]} c6 {[%emt 0:00:47]} 14. Rad1 {[%emt 0:00:51]} Nfd7 {[%emt 0:04:03][%cal Bf6d7,Bd7f8,Bf8e6][%mdl 32]} 15. f4 {[%emt 0:18:20]} Qa5 {[%emt 0:01:19]} 16. Bf2 {[%emt 0:17:06]} Nf8 {[%emt 0:02:37]} 17. Rd2 {[%emt 0:06:41]} Be6 {[%emt 0:06:05]} 18. Bf1 {[%emt 0:05:15]} a3 {[%emt 0:11:27] White has an edge.} 19. b3 {[%emt 0:01:25]} f5 $1 {[%emt 0:00:43]} 20. Bg2 {[%emt 0:08:00]} Bd7 {[%emt 0:10:51]} 21. Rde2 {[%emt 0:04:39]} ({Worse is} 21. exf5 Bxf5 22. Nxf5 Rxe1+ 23. Bxe1 Bxc3 24. Nh6+ (24. Nxd6 $2 {too greedy.} Bxd2 25. Bxd2 Qd8 $19) 24... Kg7 $19) (21. Kh2 $142) 21... Nfe6 $1 $11 {[%emt 0:08:59]} 22. e5 {[%emt 0:02:07]} dxe5 {[%emt 0:00:29]} 23. fxe5 {[%emt 0:00:07]} Rac8 {[%emt 0:18:01]} 24. Qd2 {[%emt 0:06:01]} Rcd8 {[%emt 0:02:08]} 25. Nb1 {[%emt 0:01:46]} Qxd2 {[%emt 0:09:45]} 26. Rxd2 {[%emt 0:01:26] [#]} Ne4 {[%emt 0:00:04]} 27. Nxe6 {[%emt 0:06:09]} Bxe6 {[%emt 0:00:02]} 28. Bxe4 {[%emt 0:01:58]} fxe4 {[%emt 0:00:03]} 29. g4 {[%emt 0:00:10]} Bf8 $36 {[%emt 0:11:01][%mdl 2048] Black is pushing.} 30. Rxe4 {[%emt 0:04:27]} Bb4 {[%emt 0:00:01]} 31. Rxd8 {[%emt 0:01:18]} (31. Rdd4 $11 {remains equal.}) 31... Rxd8 $17 {[%emt 0:00:00]} 32. Rd4 {[%emt 0:00:09]} Rf8 {[%emt 0:04:20]} ({Black should play} 32... Rxd4 $1 $17 33. Bxd4 h5) 33. Re4 $2 {[%emt 0:05:20] [#]} (33. Kg2 $11) 33... c5 $1 {[%emt 0:00:32][%mdl 1024] Threatens to win with ...Rd8. Black has strong compensation. Black is more active.} 34. Be1 {[%emt 0:00:05]} Rf3 {[%emt 0:02:20][%cal Of3b3] ...Rxb3! would now be deadly.} 35. Kg2 $2 {[%emt 0:01:37] [#]} (35. Bxb4 $17 cxb4 36. Nd2 Rxh3 37. Rd4) 35... Rxb3 $3 {[%emt 0:00:48][%mdl 512] Weighted Error Value: White=0.58/Black=0.18 (very precise) .  Loses game:     	White=1     	---        Mistake:       	White=3     	Black=2      Inaccurate:     	White=2     	Black=2      OK:         	White=4     	Black=3      Best:        	White=1     	Black=2      Strong:       	---       	Black=3      Brilliant:      	---       	Black=1} 0-1

[Event "BL 2024-25"]
[Site "Austria"]
[Date "2024.10.09"]
[Round "1.2"]
[White "Krivoborodov, Egor"]
[Black "Hacker, Jonas"]
[Result "1/2-1/2"]
[ECO "D00"]
[WhiteElo "2555"]
[BlackElo "2385"]
[Annotator "TA"]
[PlyCount "153"]
[EventDate "2024.08.28"]
[EventType "team-tourn"]
[EventCountry "AUT"]
[SourceTitle "playchess.com"]
[Source "ChessBase"]
[SourceQuality "1"]
[WhiteTeam "Frauental"]
[BlackTeam "Salzburg"]
[TimeControl "40/5400+30:1800+30"]

{[%evp 9,153,0,0,0,0,0,0,0,0,0,24,4,0,0,-6,-3,0,-10,-4,0,0,0,0,0,6,-12,-14,-10,0,-10,0,0,0,0,0,0,0,-43,-43,-74,-70,-76,-80,-75,-68,-74,-70,-113,-112,-116,-100,-108,-108,-109,-109,-116,-95,-130,-143,-143,-143,-136,-136,-130,-112,-150,-127,-131,-133,-129,-140,-143,-156,-234,-228,-422,-422,-422,-414,-422,-348,-351,0,-423,-408,-420,-412,-349,-341,-579,-591,-577,-506,-581,-586,-563,-558,-525,-528,-503,-560,-508,-506,-506,-457,-864,-863,-1275,-1261,-1275,-1275,-1275,-1268,-1268,-1250,-1235,-1235,-1097,0,0,0,0,0,0,0,0,0,0,0,0,0,0,0,0,0,0,0,0,0,0,0,0,0,0,0,0]} 1. d4 {[%emt 0:00:04]} Nf6 {[%emt 0:00:13]} 2. Nc3 {[%emt 0:00:04]} d5 {[%emt 0:00:22]} 3. Bf4 {[%emt 0:00:02]} c5 {[%emt 0:01:03]} 4. e4 {[%emt 0:00:15]} Nxe4 {[%emt 0:01:51]} 5. Nxe4 {[%emt 0:01:01]} dxe4 {[%emt 0:00:10]} 6. dxc5 {[%emt 0:00:06]} Qa5+ {[%emt 0:04:47]} 7. c3 {[%emt 0:05:02] aiming for b4.} Qxc5 {[%emt 0:00:32]} 8. Qa4+ {[%emt 0:03:41]} Nc6 {[%emt 0:03:36]} 9. Qxe4 {[%emt 0:02:38]} Bf5 {[%emt 0:08:46]} 10. Qc4 {[%emt 0:00:35]} e5 {[%emt 0:03:33]} 11. Be3 {[%emt 0:01:45]} Qa5 {[%emt 0:03:29]} 12. Nf3 {[%emt 0:09:24][%cal Bg1f3,Bf3d2,Bd2b3][%mdl 32]} Be6 {[%emt 0:02:47]} 13. Qb5 {[%emt 0:01:54]} Qxb5 {[%emt 0:04:55]} 14. Bxb5 {[%emt 0:00:04]} f6 {[%emt 0:00:24]} 15. Nd2 {[%emt 0:03:11]} Kf7 {[%emt 0:11:30]} 16. O-O-O {[%emt 0:11:44]} Be7 {[%emt 0:04:44]} 17. Nb3 {[%emt 0:07:17]} Rac8 {[%emt 0:04:10]} 18. Kb1 {[%emt 0:02:52]} a6 {[%emt 0:03:43]} 19. Be2 {[%emt 0:01:56]} Rhd8 {[%emt 0:04:45]} 20. Nc5 {[%emt 0:09:14]} Bxc5 {[%emt 0:02:09]} 21. Bxc5 {[%emt 0:00:17]} Rd5 {[%emt 0:06:00]} 22. b4 {[%emt 0:14:46]} Rcd8 {[%emt 0:02:47]} 23. Rxd5 {[%emt 0:23:26]} Bxd5 {[%emt 0:02:21]} 24. f3 {[%emt 0:00:26] [#]} Bxa2+ $1 {[%emt 0:02:03]} 25. Kc2 {[%emt 0:00:43]} (25. Kc1 a5) 25... Be6 {[%emt 0:01:25]} 26. Bb6 {[%emt 0:00:01]} Rd6 {[%emt 0:08:46][%cal Oc6b4]} 27. Bc5 {[%emt 0:00:04]} Rd7 {[%emt 0:01:23]} 28. Be3 {[%emt 0:00:02]} Ne7 {[%emt 0:05:25]} 29. c4 {[%emt 0:01:22]} Nf5 {[%emt 0:01:45]} 30. Bc5 {[%emt 0:00:02]} Nd4+ {[%emt 0:02:14]} 31. Bxd4 {[%emt 0:00:01]} Rxd4 $17 {[%emt 0:01:16][%mdl 4096] Endgame. KRB-KRB} 32. Kc3 {[%emt 0:00:02]} g5 {[%emt 0:02:04]} 33. h3 {[%emt 0:00:27]} h5 {[%emt 0:01:18]} 34. Bd3 {[%emt 0:00:02]} Ke7 {[%emt 0:00:23]} 35. Ra1 {[%emt 0:00:15]} Kd7 {[%emt 0:00:20]} 36. Ra5 {[%emt 0:00:54]} Rd6 {[%emt 0:00:48]} 37. c5 {[%emt 0:00:35]} Rd4 {[%emt 0:00:25]} 38. b5 {[%emt 0:00:15]} axb5 {[%emt 0:00:23]} 39. Rxb5 {[%emt 0:00:35]} Bd5 {[%emt 0:00:28]} 40. Rb6 {[%emt 0:01:51]} Bc6 {[%emt 0:00:14]} 41. Bb5 {[%emt 0:30:01]} (41. Bf5+ $17 Kc7 42. Rb2) 41... Kc7 $1 $19 {[%emt 0:06:24]} 42. Bxc6 {[%emt 0:00:00]} (42. Bd3) 42... bxc6 {[%emt 0:00:03] KR-KR} 43. Ra6 {[%emt 0:00:00]} Kd7 {[%emt 0:00:38]} 44. Rb6 {[%emt 0:00:00]} Ra4 {[%emt 0:12:55]} 45. Rb2 {[%emt 0:00:00]} Rd4 {[%emt 0:01:09]} 46. Rb6 $1 {[%emt 0:00:00]} h4 {[%emt 0:00:10]} 47. Ra6 {[%emt 0:00:00]} Rd5 {[%emt 0:07:49]} 48. Kc4 {[%emt 0:00:00]} Rd2 {[%emt 0:00:19] White must now prevent ...Rc2+.} 49. Kb4 $2 {[%emt 0:00:00]} (49. Ra7+ {was called for.} Ke6 50. Ra8 Rd4+ (50... Rxg2 $2 51. Rc8 $19) 51. Kc3) 49... Rb2+ {[%emt 0:02:03]} 50. Kc4 {[%emt 0:00:00]} Rxg2 {[%emt 0:02:44]} 51. Ra7+ {[%emt 0:00:00]} Ke6 {[%emt 0:00:34]} 52. Rc7 {[%emt 0:00:00]} Rf2 {[%emt 0:01:42]} 53. Rxc6+ {[%emt 0:00:00]} Kf5 {[%emt 0:00:04]} 54. Rd6 {[%emt 0:00:00]} Rxf3 {[%emt 0:00:11]} 55. Rd1 {[%emt 0:00:00]} Ra3 {[%emt 0:01:08][%cal Oe5e4]} (55... Rxh3 56. c6 Rh2 57. Kb3 Rh3+ 58. Kb4 $11) 56. c6 {[%emt 0:00:00] c7 would kill now.} Ra8 {[%emt 0:00:16]} (56... Rxh3 57. c7 Kg6 58. c8=Q (58. c8=R Rf3 $11) 58... Ra3 59. Qe8+ Kf5 60. Rf1+ Kg4 61. Qe6+ (61. Rxf6 Kh3 62. Qxe5 Ra4+ 63. Kb3 Rf4 64. Rxf4 gxf4 65. Qxf4 Kg2 66. Qxh4 Kf3) 61... f5 62. Qxf5+ Kh5 63. Qxe5) 57. Kc5 {[%emt 0:00:00]} (57. Rc1 $142 Kf4 58. Kd5) 57... e4 {[%emt 0:00:43] ...Kf4 is the strong threat.} 58. c7 {[%emt 0:00:00]} Rc8 {[%emt 0:00:11]} 59. Kd6 {[%emt 0:00:00]} e3 {[%emt 0:01:40] Threatens to win with ...Kf4.} 60. Rf1+ {[%emt 0:00:00]} Ke4 {[%emt 0:00:00]} 61. Rxf6 {[%emt 0:00:00]} e2 {[%emt 0:00:00] ( -> ...Kd3)} 62. Kd7 {[%emt 0:00:00] [#]} Rxc7+ $3 {[%emt 0:00:28][%mdl 512]} 63. Kxc7 {[%emt 0:00:00] [#] KR-K3P} Ke3 $2 {[%emt 0:00:25]} ({And not} 63... e1=B 64. Re6+ Kf3 65. Rxe1 $11) (63... e1=Q 64. Re6+ Kf3 65. Rxe1 $11) ({Better is} 63... g4 $1 $19 {[%cal Rg4h3]} 64. Re6+ Kf3 65. hxg4 h3 66. Rf6+ Kxg4 67. Rg6+ Kf4 68. Rf6+ Ke5) 64. Re6+ $11 {[%emt 0:00:00] The position is equal.} Kf2 {[%emt 0:00:07]} (64... Kd2 $5 65. Rd6+ $8 Ke3 66. Re6+ Kd3 67. Rd6+ Ke3 68. Re6+ $11) 65. Rf6+ $1 {[%emt 0:00:00]} Kg2 {[%emt 0:00:13]} 66. Re6 {[%emt 0:00:00]} Kxh3 {[%emt 0:01:28] Hoping for ...g4.} (66... Kf1 $5 67. Rf6+ $8 Kg2 $11) 67. Re3+ {[%emt 0:00:00]} Kg2 {[%emt 0:00:18]} 68. Rxe2+ {[%emt 0:00:00] KR-KPP} Kf3 {[%emt 0:00:09]} 69. Rh2 {[%emt 0:00:00]} Kg3 {[%emt 0:00:13]} 70. Ra2 {[%emt 0:00:00]} h3 {[%emt 0:01:22][%cal Bh4h3,Bh3h2][%mdl 32]} 71. Kd6 {[%emt 0:00:00]} h2 {[%emt 0:00:09]} 72. Ra1 {[%emt 0:00:00]} Kf4 {[%emt 0:01:02] ...g4 would now be deadly.} (72... g4 $5 73. Ke5 $8 Kf3 74. Ra3+ Kg2 75. Ra2+ Kg3 $11) 73. Rh1 {[%emt 0:00:00]} Kg3 {[%emt 0:00:12]} 74. Ke5 {[%emt 0:00:00]} Kg2 {[%emt 0:00:24]} 75. Rxh2+ {[%emt 0:00:00]} Kxh2 {[%emt 0:00:03]} 76. Kf5 {[%emt 0:00:00]} Kg3 {[%emt 0:00:15]} 77. Kxg5 {[%emt 0:00:00] Whites escaped into a draw.   Weighted Error Value: White=0.32/Black=0.10 (very precise) .  Mistake:       	White=4     	---        Inaccurate:     	White=6     	---        OK:         	White=23    	Black=33     Best:        	White=8     	Black=6      Strong:       	White=2     	Black=1      Brilliant:      	---       	Black=1} 1/2-1/2

[Event "BL 2024-25"]
[Site "Austria"]
[Date "2024.10.09"]
[Round "1.3"]
[White "Goldbeck, Lars"]
[Black "Tratar, Marko"]
[Result "1/2-1/2"]
[ECO "A50"]
[WhiteElo "2372"]
[BlackElo "2374"]
[Annotator "RC"]
[PlyCount "71"]
[EventDate "2024.08.28"]
[EventType "team-tourn"]
[EventCountry "AUT"]
[SourceTitle "playchess.com"]
[Source "ChessBase"]
[SourceQuality "1"]
[WhiteTeam "Salzburg"]
[BlackTeam "Frauental"]
[TimeControl "40/5400+30:1800+30"]

1. d4 {[%emt 0:00:17]} e6 {[%emt 0:00:30]} 2. c4 {[%emt 0:00:09]} b6 {[%emt 0:01:47]} 3. a3 {[%emt 0:03:55]} Bb7 {[%emt 0:04:01]} 4. Nc3 {[%emt 0:00:34]} Nf6 {[%emt 0:00:21]} 5. d5 {[%emt 0:06:18]} Bd6 {[%emt 0:00:39]} 6. e4 {[%emt 0:04:21]} Be5 {[%emt 0:30:10]} 7. Nge2 {[%emt 0:16:35]} exd5 {[%emt 0:07:05]} 8. cxd5 {[%emt 0:08:29]} O-O {[%emt 0:03:23]} 9. Bf4 {[%emt 0:12:08]} Bxf4 {[%emt 0:20:37]} 10. Nxf4 {[%emt 0:00:07]} c5 {[%emt 0:00:07]} 11. Bd3 {[%emt 0:03:08]} d6 {[%emt 0:07:11]} 12. O-O {[%emt 0:02:54]} Ba6 {[%emt 0:01:03]} 13. Re1 {[%emt 0:04:28]} Re8 {[%emt 0:02:55]} 14. Bc2 {[%emt 0:02:20]} Nbd7 {[%emt 0:01:47]} 15. Ba4 {[%emt 0:02:48]} b5 {[%emt 0:06:44]} 16. Bc2 {[%emt 0:09:44]} Qb6 {[%emt 0:00:56]} 17. b4 {[%emt 0:00:34]} Rac8 {[%emt 0:02:47]} 18. Re3 {[%emt 0:04:08]} Ne5 {[%emt 0:00:34]} 19. Rg3 {[%emt 0:00:15]} Rc7 {[%emt 0:02:41]} 20. Nd3 {[%emt 0:03:46]} cxb4 {[%emt 0:01:22]} 21. Nxb4 {[%emt 0:01:13]} Bb7 {[%emt 0:00:25]} 22. Rb1 {[%emt 0:01:13]} a6 {[%emt 0:00:49]} 23. Qd2 {[%emt 0:02:47]} Rec8 {[%emt 0:01:42]} 24. Nba2 {[%emt 0:01:15]} Qa5 {[%emt 0:00:58]} 25. a4 {[%emt 0:01:13]} bxa4 {[%emt 0:01:07]} 26. Bxa4 {[%emt 0:00:39]} Ba8 {[%emt 0:00:48]} 27. h3 {[%emt 0:01:30]} Kf8 {[%emt 0:00:23]} 28. Kh2 {[%emt 0:02:19]} h6 {[%emt 0:00:38]} 29. Bd1 {[%emt 0:00:29]} Nc4 {[%emt 0:00:31]} 30. Qf4 {[%emt 0:00:57]} Qc5 {[%emt 0:00:18]} 31. Be2 {[%emt 0:01:17]} Ne5 {[%emt 0:00:50]} 32. Bxa6 {[%emt 0:00:13]} Nh5 {[%emt 0:00:08]} 33. Qe3 {[%emt 0:03:28]} Nxg3 {[%emt 0:00:31]} 34. Qxc5 {[%emt 0:00:39]} Rxc5 {[%emt 0:00:11]} 35. Bxc8 {[%emt 0:00:16]} Nxe4 {[%emt 0:00:35]} 36. Nxe4 {[%emt 0:01:11]} 1/2-1/2

[Event "BL 2024-25"]
[Site "Austria"]
[Date "2024.10.09"]
[Round "1.4"]
[White "Mohr, Georg"]
[Black "Hinterreiter, Markus"]
[Result "1-0"]
[ECO "D45"]
[WhiteElo "2381"]
[BlackElo "2269"]
[Annotator "RC"]
[PlyCount "71"]
[EventDate "2024.08.28"]
[EventType "team-tourn"]
[EventCountry "AUT"]
[SourceTitle "playchess.com"]
[Source "ChessBase"]
[SourceQuality "1"]
[WhiteTeam "Frauental"]
[BlackTeam "Salzburg"]
[TimeControl "40/5400+30:1800+30"]

1. Nf3 {[%emt 0:00:06]} d5 {[%emt 0:00:20]} 2. c4 {[%emt 0:01:07]} c6 {[%emt 0:00:41]} 3. e3 {[%emt 0:04:32]} Nf6 {[%emt 0:02:59]} 4. Nc3 {[%emt 0:00:09]} e6 {[%emt 0:01:07]} 5. d4 {[%emt 0:04:21]} Nbd7 {[%emt 0:01:00]} 6. Qc2 {[%emt 0:00:08]} Bd6 {[%emt 0:01:21]} 7. e4 {[%emt 0:14:30]} Nxe4 {[%emt 0:03:51]} 8. Nxe4 {[%emt 0:00:31]} dxe4 {[%emt 0:00:03]} 9. Qxe4 {[%emt 0:00:17]} Bb4+ {[%emt 0:10:46]} 10. Bd2 {[%emt 0:00:49]} Bxd2+ {[%emt 0:02:32]} 11. Nxd2 {[%emt 0:00:08]} c5 {[%emt 0:03:22]} 12. dxc5 {[%emt 0:05:36]} Qa5 {[%emt 0:05:50]} 13. a3 {[%emt 0:03:05]} Qxc5 {[%emt 0:03:34]} 14. b4 {[%emt 0:02:07]} Qc7 {[%emt 0:03:21]} 15. Be2 {[%emt 0:02:12]} Nf6 {[%emt 0:02:32]} 16. Qe3 {[%emt 0:00:25]} b6 {[%emt 0:03:16]} 17. O-O {[%emt 0:05:50]} O-O {[%emt 0:02:36]} 18. Rac1 {[%emt 0:04:28]} Bb7 {[%emt 0:06:26]} 19. Bf3 {[%emt 0:04:35]} Rac8 {[%emt 0:04:21]} 20. Bxb7 {[%emt 0:05:19]} Qxb7 {[%emt 0:01:03]} 21. Nf3 {[%emt 0:00:05]} Rfd8 {[%emt 0:03:46]} 22. Rfe1 {[%emt 0:01:15]} Qd7 {[%emt 0:07:49]} 23. Ne5 {[%emt 0:04:47]} Qd2 {[%emt 0:02:07]} 24. Qf3 {[%emt 0:00:25]} Kf8 {[%emt 0:02:57]} 25. Qb7 {[%emt 0:03:17]} Nd7 {[%emt 0:01:28]} 26. Nc6 {[%emt 0:01:53]} Rxc6 {[%emt 0:02:38]} 27. Qxc6 {[%emt 0:00:21]} Ne5 {[%emt 0:00:45]} 28. Qc7 {[%emt 0:01:31]} f6 {[%emt 0:01:47]} 29. c5 {[%emt 0:05:49]} Rd7 {[%emt 0:03:23]} 30. Qc8+ {[%emt 0:02:31]} Kf7 {[%emt 0:02:14]} 31. c6 {[%emt 0:01:29]} Rd5 {[%emt 0:01:48]} 32. h3 {[%emt 0:06:05]} Qg5 {[%emt 0:02:57]} 33. Rc3 {[%emt 0:02:55]} Qd2 {[%emt 0:01:24]} 34. Rce3 {[%emt 0:01:37]} Rd6 {[%emt 0:01:10]} 35. Qb7+ {[%emt 0:00:25]} Kg6 {[%emt 0:00:48]} 36. c7 {[%emt 0:00:22]} 1-0

[Event "BL 2024-25"]
[Site "Austria"]
[Date "2024.10.09"]
[Round "1.5"]
[White "Weber, Samuel"]
[Black "Schnider, Gert"]
[Result "1/2-1/2"]
[ECO "A34"]
[WhiteElo "2256"]
[BlackElo "2362"]
[Annotator "RC"]
[PlyCount "81"]
[EventDate "2024.08.28"]
[EventType "team-tourn"]
[EventCountry "AUT"]
[SourceTitle "playchess.com"]
[Source "ChessBase"]
[SourceQuality "1"]
[WhiteTeam "Salzburg"]
[BlackTeam "Frauental"]
[TimeControl "40/5400+30:1800+30"]

1. c4 {[%emt 0:00:49]} Nf6 {[%emt 0:00:56]} 2. g3 {[%emt 0:00:12]} c5 {[%emt 0:00:50]} 3. Bg2 {[%emt 0:01:22]} d5 {[%emt 0:00:10]} 4. cxd5 {[%emt 0:00:08]} Nxd5 {[%emt 0:00:02]} 5. Nc3 {[%emt 0:00:35]} Nc7 {[%emt 0:00:15]} 6. a3 {[%emt 0:04:56]} Nc6 {[%emt 0:03:29]} 7. Nf3 {[%emt 0:01:11]} e6 {[%emt 0:11:07]} 8. d3 {[%emt 0:05:10]} Be7 {[%emt 0:00:13]} 9. O-O {[%emt 0:01:40]} O-O {[%emt 0:00:06]} 10. Be3 {[%emt 0:11:09]} e5 {[%emt 0:16:52]} 11. Na4 {[%emt 0:03:52]} Ne6 {[%emt 0:07:53]} 12. Rc1 {[%emt 0:04:38]} Qa5 {[%emt 0:00:24]} 13. Bd2 {[%emt 0:12:52]} Qb5 {[%emt 0:06:21]} 14. Nc3 {[%emt 0:10:57]} Qa6 {[%emt 0:02:39]} 15. Nd5 {[%emt 0:01:21]} Bd6 {[%emt 0:01:56]} 16. b4 {[%emt 0:04:31]} Bd7 {[%emt 0:01:45]} 17. Ng5 {[%emt 0:07:49]} Nxg5 {[%emt 0:05:54]} 18. Bxg5 {[%emt 0:03:03]} cxb4 {[%emt 0:07:28]} 19. axb4 {[%emt 0:00:33]} Nxb4 {[%emt 0:05:07]} 20. Nc7 {[%emt 0:00:57]} Bxc7 {[%emt 0:02:28]} 21. Rxc7 {[%emt 0:00:02]} Bc6 {[%emt 0:01:22]} 22. Bxc6 {[%emt 0:08:25]} Nxc6 {[%emt 0:00:35]} 23. Qb1 {[%emt 0:01:12]} Nd4 {[%emt 0:04:02]} 24. Rxb7 {[%emt 0:03:27]} Nxe2+ {[%emt 0:00:34]} 25. Kg2 {[%emt 0:00:24]} Nd4 {[%emt 0:01:13]} 26. Be3 {[%emt 0:00:50]} Qd6 {[%emt 0:02:33]} 27. Bxd4 {[%emt 0:01:31]} Qxd4 {[%emt 0:00:12]} 28. Qb3 {[%emt 0:01:12]} a5 {[%emt 0:01:08]} 29. Qc4 {[%emt 0:02:08]} Qd6 {[%emt 0:02:17]} 30. Ra1 {[%emt 0:00:52]} a4 {[%emt 0:05:07]} 31. Rxa4 {[%emt 0:03:18]} Rxa4 {[%emt 0:00:08]} 32. Qxa4 {[%emt 0:00:04]} Qxd3 {[%emt 0:00:09]} 33. Qb3 {[%emt 0:00:17]} Qe4+ {[%emt 0:01:44]} 34. Qf3 {[%emt 0:00:14]} Qc4 {[%emt 0:00:49]} 35. Re7 {[%emt 0:00:27]} Qc5 {[%emt 0:00:48]} 36. Qb7 {[%emt 0:00:15]} g6 {[%emt 0:01:06]} 37. Rd7 {[%emt 0:01:06]} Qc4 {[%emt 0:02:43]} 38. Re7 {[%emt 0:00:06]} Qc5 {[%emt 0:01:54]} 39. Rd7 {[%emt 0:00:06]} Qc3 {[%emt 0:02:48]} 40. Qd5 {[%emt 0:00:16]} h5 {[%emt 0:01:47]} 41. Re7 {[%emt 0:33:40]} 1/2-1/2

[Event "BL 2024-25"]
[Site "Austria"]
[Date "2024.10.09"]
[Round "1.6"]
[White "Skuhala, Jernej"]
[Black "Lomsadze, Irakly"]
[Result "1/2-1/2"]
[ECO "C65"]
[WhiteElo "2320"]
[BlackElo "2040"]
[Annotator "RC"]
[PlyCount "123"]
[EventDate "2024.08.28"]
[EventType "team-tourn"]
[EventCountry "AUT"]
[SourceTitle "playchess.com"]
[Source "ChessBase"]
[SourceQuality "1"]
[WhiteTeam "Frauental"]
[BlackTeam "Salzburg"]
[TimeControl "40/5400+30:1800+30"]

1. e4 {[%emt 0:00:03]} e5 {[%emt 0:00:58]} 2. Nf3 {[%emt 0:00:14]} Nc6 {[%emt 0:00:18]} 3. Bb5 {[%emt 0:00:07]} Nf6 {[%emt 0:00:42]} 4. d3 {[%emt 0:00:23]} Bc5 {[%emt 0:00:18]} 5. O-O {[%emt 0:00:48]} Nd4 {[%emt 0:00:30]} 6. Nxd4 {[%emt 0:00:49]} Bxd4 {[%emt 0:00:06]} 7. c3 {[%emt 0:00:51]} Bb6 {[%emt 0:00:27]} 8. Nd2 {[%emt 0:02:55]} c6 {[%emt 0:01:25]} 9. Ba4 {[%emt 0:00:48]} O-O {[%emt 0:00:31]} 10. Nc4 {[%emt 0:01:46]} Bc7 {[%emt 0:00:40]} 11. Ne3 {[%emt 0:00:07]} d5 {[%emt 0:03:57]} 12. Qf3 {[%emt 0:00:38]} Be6 {[%emt 0:08:48]} 13. Nf5 {[%emt 0:06:20]} Qd7 {[%emt 0:09:56]} 14. Nxg7 {[%emt 0:00:27]} Kxg7 {[%emt 0:01:50]} 15. Bh6+ {[%emt 0:00:07]} Kg6 {[%emt 0:30:36]} 16. Qe3 {[%emt 0:00:05]} Nxe4 {[%emt 0:00:04]} 17. dxe4 {[%emt 0:00:05]} Qe7 {[%emt 0:02:09]} 18. Bxf8 {[%emt 0:02:25]} Qxf8 {[%emt 0:00:01]} 19. Qg3+ {[%emt 0:00:12]} Kf6 {[%emt 0:04:14]} 20. Qh4+ {[%emt 0:02:26]} Kg7 {[%emt 0:01:34]} 21. f4 {[%emt 0:01:00]} exf4 {[%emt 0:02:42]} 22. exd5 {[%emt 0:02:35]} Bxd5 {[%emt 0:04:55]} 23. Bc2 {[%emt 0:11:43]} h6 {[%emt 0:00:44]} 24. Rxf4 {[%emt 0:05:50]} Bxf4 {[%emt 0:00:53]} 25. Qxf4 {[%emt 0:00:01]} Qc5+ {[%emt 0:01:36]} 26. Kh1 {[%emt 0:00:09]} Re8 {[%emt 0:03:49]} 27. Rf1 {[%emt 0:02:10]} Qe3 {[%emt 0:08:39]} 28. Qf6+ {[%emt 0:04:38]} Kg8 {[%emt 0:00:01]} 29. Bb3 {[%emt 0:01:14]} Qg5 {[%emt 0:02:26]} 30. Qf2 {[%emt 0:02:11]} a6 {[%emt 0:02:13]} 31. Bxd5 {[%emt 0:01:01]} Qxd5 {[%emt 0:00:02]} 32. Qf4 {[%emt 0:00:11]} Qe6 {[%emt 0:01:00]} 33. h3 {[%emt 0:00:31]} Re7 {[%emt 0:01:14]} 34. Rf3 {[%emt 0:01:25]} Kh7 {[%emt 0:00:58]} 35. a3 {[%emt 0:02:16]} Qg6 {[%emt 0:01:25]} 36. Rg3 {[%emt 0:01:03]} Qe6 {[%emt 0:03:55]} 37. Qb8 {[%emt 0:02:38]} f5 {[%emt 0:00:37]} 38. Kh2 {[%emt 0:00:45]} Qf7 {[%emt 0:01:48]} 39. b4 {[%emt 0:04:15]} Re8 {[%emt 0:00:22]} 40. Qf4 {[%emt 0:00:54]} Re4 {[%emt 0:00:13]} 41. Qd6 {[%emt 0:31:42]} Re6 {[%emt 0:03:12]} 42. Qd3 {[%emt 0:00:00]} Rg6 {[%emt 0:10:03]} 43. Rf3 {[%emt 0:00:00]} Qa2 {[%emt 0:03:56]} 44. Qd7+ {[%emt 0:00:00]} Kg8 {[%emt 0:00:17]} 45. Qe8+ {[%emt 0:00:00]} Kh7 {[%emt 0:00:15]} 46. Rg3 {[%emt 0:00:00]} Rxg3 {[%emt 0:00:45]} 47. Kxg3 {[%emt 0:00:00]} Qxa3 {[%emt 0:04:35]} 48. Qf7+ {[%emt 0:00:00]} Kh8 {[%emt 0:00:07]} 49. Qf8+ {[%emt 0:00:00]} Kh7 {[%emt 0:00:08]} 50. Qxf5+ {[%emt 0:00:00]} Kg7 {[%emt 0:00:24]} 51. Qe5+ {[%emt 0:00:00]} Kf7 {[%emt 0:01:11]} 52. Kg4 {[%emt 0:00:00]} Qa2 {[%emt 0:01:46]} 53. Qf4+ {[%emt 0:00:00]} Kg7 {[%emt 0:01:16]} 54. Qd4+ {[%emt 0:00:00]} Kf7 {[%emt 0:00:23]} 55. Qd7+ {[%emt 0:00:34]} Kf6 {[%emt 0:00:44]} 56. Qd8+ {[%emt 0:02:54]} Kf7 {[%emt 0:00:33]} 57. Qc7+ {[%emt 0:02:11]} Kf6 {[%emt 0:00:15]} 58. Qf4+ {[%emt 0:00:55]} Kg7 {[%emt 0:00:14]} 59. Qe5+ {[%emt 0:00:23]} Kf7 {[%emt 0:00:15]} 60. Qf5+ {[%emt 0:09:22]} Kg7 {[%emt 0:00:48]} 61. Qe5+ {[%emt 0:01:07]} Kf7 {[%emt 0:00:10]} 62. Qf5+ {[%emt 0:08:15]} 1/2-1/2